lending/lending_fUSD_20250224
["ID","MTS","AMOUNT","RATE_DAILY","PERIOD"]
[354262047,1740370275811,-500.0,0.00017342,2]
[354262048,1740370275820,-745.66,0.00017342,2]
[354262049,1740370275829,-699.72,0.00017342,2]
[354262050,1740370275839,-1904.22,0.00017342,2]
[354262051,1740370275848,-526.35,0.00017342,2]
[354262052,1740370275857,-500.0,0.00017342,2]
[354262053,1740370275866,-1002.13,0.00017342,2]
[354262054,1740370275875,-1134.15,0.00017342,2]
[354262055,1740370275885,-500.0,0.00017342,2]
[354262056,1740370275894,-571.09,0.00017342,2]
[354262057,1740370275903,-553.86,0.00017342,2]
[354262058,1740370275912,-1052.61,0.00017342,2]
[354262059,1740370275923,-850.74,0.00017342,2]
[354262060,1740370275932,-1131.97,0.00017342,2]
[354262061,1740370275942,-500.0,0.00017342,2]
[354262062,1740370275951,-899.17,0.00017342,2]
[354262063,1740370275961,-500.0,0.00017342,2]
[354262064,1740370275970,-787.33,0.00017342,2]
[354262065,1740370275979,-500.0,0.00017342,2]
[354262066,1740370275988,-1272.39,0.00017342,2]
[354262067,1740370275997,-500.0,0.00017342,2]
[354262068,1740370276006,-769.41,0.00017342,2]
[354262069,1740370276015,-891.59,0.00017342,2]
[354262070,1740370276025,-500.0,0.00017342,2]
[354262071,1740370276034,-746.3,0.00017342,2]
[354262072,1740370276043,-512.65,0.00017342,2]
[354262073,1740370276052,-1139.12,0.00017342,2]
[354262074,1740370276061,-629.92,0.00017342,2]
[354262075,1740370276072,-1166.53,0.00017342,2]
[354262076,1740370276082,-500.0,0.00017342,2]
[354262077,1740370276091,-500.0,0.00017342,2]
[354262078,1740370276100,-500.0,0.00017342,2]
[354262079,1740370276110,-654.42,0.00017342,2]
[354262080,1740370276120,-620.82,0.00017342,2]
[354262081,1740370276129,-500.0,0.00017342,2]
[354262082,1740370276138,-589.28,0.00017342,2]
[354262083,1740370276148,-682.77,0.00017342,2]
[354262084,1740370276159,-500.0,0.00017342,2]
[354262085,1740370276170,-500.0,0.00017342,2]
[354262086,1740370276179,-677.74,0.00017342,2]
[354262087,1740370276187,-600.20704077,0.00017342,2]
[354262088,1740370276197,-500.0,0.00017342,2]
[354262089,1740370276206,-500.0,0.00017342,2]
[354262090,1740370276215,-515.59,0.00017342,2]
[354262091,1740370276224,-332.10054407,0.00017342,2]
[354262092,1740370276233,-500.0,0.00017342,2]
[354262093,1740370276243,-973.07,0.00017342,2]
[354262094,1740370276252,-531.07,0.00017342,2]
[354262095,1740370276261,-614.59,0.00017342,2]
[354262096,1740370276270,-673.96,0.00017342,2]
[354262097,1740370276279,-500.0,0.00017342,2]
[354262098,1740370276288,-545.54,0.00017342,2]
[354262099,1740370276297,-297.60100461,0.00017342,2]
[354262100,1740370276307,-319.66865899,0.00017342,2]
[354262101,1740370276316,-546.89,0.00017342,2]
[354262102,1740370276325,-583.18,0.00017342,2]
[354262103,1740370276335,-882.41,0.00017342,2]
[354262104,1740370276344,-500.0,0.00017342,2]
[354262105,1740370276353,-500.0,0.00017342,2]
[354262106,1740370276362,-502.84,0.00017342,2]
[354262107,1740370276372,-500.0,0.00017342,2]
[354262108,1740370276381,-576.49,0.00017342,2]
[354262109,1740370276390,-500.0,0.00017342,2]
[354262110,1740370276399,-500.0,0.00017342,2]
[354262111,1740370276408,-768.2,0.00017342,2]
[354262112,1740370276418,-500.0,0.00017342,2]
[354262113,1740370276427,-556.67,0.00017342,2]
[354262114,1740370276436,-500.0,0.00017342,2]
[354262115,1740370276446,-781.2,0.00017342,2]
[354262116,1740370276455,-992.75,0.00017342,2]
[354262117,1740370276464,-845.58,0.00017342,2]
[354262118,1740370276474,-822.7,0.00017342,2]
[354262119,1740370276483,-519.67,0.00017342,2]
[354262120,1740370276492,-506.17,0.00017342,2]
[354262121,1740370276502,-1117.0,0.00017342,2]
[354262122,1740370276511,-500.0,0.00017342,2]
[354262123,1740370276520,-611.16,0.00017342,2]
[354262124,1740370276530,-500.0,0.00017342,2]
[354262125,1740370276540,-500.0,0.00017342,2]
[354262126,1740370276549,-500.0,0.00017342,2]
[354262127,1740370276559,-1226.43,0.00017342,2]
[354262128,1740370276569,-890.12,0.00017342,2]
[354262129,1740370276579,-887.69,0.00017342,2]
[354262130,1740370276588,-690.76,0.00017342,2]
[354262131,1740370276598,-689.31,0.00017342,2]
[354262132,1740370276607,-595.43,0.00017342,2]
[354262133,1740370276616,-500.0,0.00017342,2]
[354262134,1740370276625,-500.0,0.00017342,2]
[354262135,1740370276634,-929.89,0.00017342,2]
[354262136,1740370276643,-500.0,0.00017342,2]
[354262137,1740370276652,-688.58,0.00017342,2]
[354262138,1740370276661,-500.0,0.00017342,2]
[354262139,1740370276670,-518.85,0.00017342,2]
[354262140,1740370276679,-500.0,0.00017342,2]
[354262141,1740370276688,-783.77,0.00017342,2]
[354262142,1740370276697,-627.66,0.00017342,2]
[354262143,1740370276707,-500.0,0.00017342,2]
[354262144,1740370276715,-1124.15,0.00017342,2]
[354262145,1740370276725,-500.0,0.00017342,2]
[354262146,1740370276734,-500.0,0.00017342,2]
[354262147,1740370276743,-500.0,0.00017342,2]
[354262148,1740370276752,-648.07,0.00017342,2]
[354262149,1740370276761,-742.83,0.00017342,2]
[354262150,1740370276771,-544.47,0.00017342,2]
[354262151,1740370276779,-538.11,0.00017342,2]
[354262152,1740370276788,-606.9,0.00017342,2]
[354262153,1740370276800,-761.19,0.00017342,2]
[354262154,1740370276809,-942.27,0.00017342,2]
[354262155,1740370276818,-500.0,0.00017342,2]
[354262156,1740370276827,-1119.02,0.00017342,2]
[354262157,1740370276836,-719.34,0.00017342,2]
[354262158,1740370276845,-604.42,0.00017342,2]
[354262159,1740370276854,-500.0,0.00017342,2]
[354262160,1740370276863,-531.87,0.00017342,2]
[354262161,1740370276872,-985.74,0.00017342,2]
[354262162,1740370276882,-955.59,0.00017342,2]
[354262163,1740370276891,-506.69,0.00017342,2]
[354262164,1740370276900,-1299.46,0.00017342,2]
[354262165,1740370276909,-500.0,0.00017342,2]
[354262166,1740370276919,-585.3117157,0.00017342,2]
[354262167,1740370276928,-529.88,0.00017342,2]
[354262168,1740370276938,-603.32,0.00017342,2]
[354262169,1740370276947,-2279.4,0.00017342,2]
[354262170,1740370276956,-500.0,0.00017342,2]
[354262171,1740370276965,-1087.58,0.00017342,2]
[354262172,1740370276975,-1355.43,0.00017342,2]
[354262173,1740370276984,-1419.3,0.00017342,2]
[354262174,1740370276995,-1326.58,0.00017342,2]
[354262175,1740370277004,-990.6,0.00017342,2]
[354262176,1740370277014,-518.6,0.00017342,2]
[354262177,1740370277023,-1147.32,0.00017342,2]
[354262178,1740370277032,-1927.97,0.00017342,2]
[354262179,1740370277041,-1418.58,0.00017342,2]
[354262180,1740370277050,-500.0,0.00017342,2]
[354262181,1740370277059,-881.04,0.00017342,2]
[354262182,1740370277069,-2363.12,0.00017342,2]
[354262183,1740370277079,-2242.46,0.00017342,2]
[354262184,1740370277089,-500.0,0.00017342,2]
[354262185,1740370277098,-500.0,0.00017342,2]
[354262186,1740370277108,-1062.87,0.00017342,2]
[354262187,1740370277118,-618.22,0.00017342,2]
[354262188,1740370277128,-1442.62,0.00017342,2]
[354262189,1740370277137,-2156.86,0.00017342,2]
[354262190,1740370277146,-834.42,0.00017342,2]
[354262191,1740370277158,-2002.34,0.00017342,2]
[354262192,1740370277167,-693.2,0.00017342,2]
[354262193,1740370277178,-1463.93,0.00017342,2]
[354262194,1740370277188,-1507.75,0.00017342,2]
[354262195,1740370277197,-1055.17,0.00017342,2]
[354262196,1740370277207,-590.46,0.00017342,2]
[354262197,1740370277216,-731.62,0.00017342,2]
[354262198,1740370277225,-1951.74,0.00017342,2]
[354262199,1740370277234,-1780.85,0.00017342,2]
[354262200,1740370277244,-500.0,0.00017342,2]
[354262201,1740370277253,-500.0,0.00017342,2]
[354262202,1740370277262,-11267.85,0.00017342,2]
[354262203,1740370277272,-582.35,0.00017342,2]
[354262204,1740370277282,-822.47,0.00017342,2]
[354262205,1740370277291,-773.02,0.00017342,2]
[354262206,1740370277301,-2054.61,0.00017342,2]
[354262207,1740370277311,-1628.62,0.00017342,2]
[354262208,1740370277320,-599.87,0.00017342,2]
[354262209,1740370277329,-3117.91,0.00017342,2]
[354262210,1740370277339,-4818.73,0.00017342,2]
[354262211,1740370277349,-655.46,0.00017342,2]
[354262212,1740370277358,-5552.05,0.00017342,2]
[354262213,1740370277368,-500.0,0.00017342,2]
[354262214,1740370277378,-1407.53,0.00017342,2]
[354262215,1740370277387,-1303.65,0.00017342,2]
[354262216,1740370277396,-2523.47,0.00017342,2]
[354262217,1740370277406,-1935.81,0.00017342,2]
[354262218,1740370277415,-1791.53,0.00017342,2]
[354262219,1740370277425,-1194.26,0.00017342,2]
[354262220,1740370277436,-151.0,0.00017342,2]
[354262221,1740370277445,-445.283686,0.00017342,2]
[354262222,1740370277455,-3040.22,0.00017342,2]
[354262223,1740370277465,-555.36,0.00017342,2]
[354262224,1740370277474,-2447.95,0.00017342,2]
[354262225,1740370277485,-778.73,0.00017342,2]
[354262226,1740370277494,-445.283686,0.00017342,2]
[354262227,1740370277504,-2805.33,0.00017342,2]
[354262228,1740370277513,-1830.49,0.00017342,2]
[354262229,1740370277523,-1963.82,0.00017342,2]
[354262230,1740370277532,-3178.28,0.00017342,2]
[354262231,1740370277542,-1465.42,0.00017342,2]
[354262232,1740370277551,-3050.1,0.00017342,2]
[354262233,1740370277561,-1928.5,0.00017342,2]
[354262234,1740370277570,-1941.07,0.00017342,2]
[354262235,1740370277580,-748.66,0.00017342,2]
[354262236,1740370277589,-500.0,0.00017342,2]
[354262237,1740370277599,-1478.69,0.00017342,2]
[354262238,1740370277609,-2173.14,0.00017342,2]
[354262239,1740370277618,-3736.47,0.00017342,2]
[354262240,1740370277627,-1220.36,0.00017342,2]
[354262241,1740370277637,-1666.17,0.00017342,2]
[354262242,1740370277647,-2977.97,0.00017342,2]
[354262243,1740370277656,-1017.67,0.00017342,2]
[354262244,1740370277666,-1640.63,0.00017342,2]
[354262245,1740370277675,-6338.02,0.00017342,2]
[354262246,1740370277684,-2867.15,0.00017342,2]
[354262247,1740370277694,-841.89,0.00017342,2]
[354262248,1740370277703,-500.0,0.00017342,2]
[354262249,1740370277713,-2143.08,0.00017342,2]
[354262250,1740370277722,-2766.52,0.00017342,2]
[354262251,1740370277732,-931.52,0.00017342,2]
[354262252,1740370277742,-500.0,0.00017342,2]
[354262253,1740370277751,-549.15,0.00017342,2]
[354262254,1740370277761,-500.0,0.00017342,2]
[354262255,1740370277770,-2546.08,0.00017342,2]
[354262256,1740370277780,-500.0,0.00017342,2]
[354262257,1740370277789,-1331.74,0.00017342,2]
[354262258,1740370277799,-1142.48,0.00017342,2]
[354262259,1740370277808,-1700.65,0.00017342,2]
[354262260,1740370277818,-1357.58,0.00017342,2]
[354262261,1740370277827,-2422.92,0.00017342,2]
[354262262,1740370277837,-3135.47,0.00017342,2]
[354262263,1740370277847,-1200.83,0.00017342,2]
[354262264,1740370277856,-1256.88,0.00017342,2]
[354262265,1740370277866,-985.51,0.00017342,2]
[354262266,1740370277876,-2703.34,0.00017342,2]
[354262267,1740370277885,-1243.49,0.00017342,2]
[354262268,1740370277895,-500.0,0.00017342,2]
[354262269,1740370277904,-2741.9,0.00017342,2]
[354262270,1740370277913,-3475.77,0.00017342,2]
[354262271,1740370277923,-2863.31,0.00017342,2]
[354262272,1740370277932,-807.12,0.00017342,2]
[354262273,1740370277942,-2094.5,0.00017342,2]
[354262274,1740370277952,-1429.41,0.00017342,2]
[354262275,1740370277961,-656.42,0.00017342,2]
[354262276,1740370277970,-1109.03,0.00017342,2]
[354262277,1740370277980,-3155.01,0.00017342,2]
[354262278,1740370277989,-1836.26,0.00017342,2]
[354262279,1740370277998,-2861.82,0.00017342,2]
[354262280,1740370278007,-1222.45,0.00017342,2]
[354262281,1740370278017,-1059.77,0.00017342,2]
[354262282,1740370278026,-1881.25,0.00017342,2]
[354262283,1740370278036,-2516.19,0.00017342,2]
[354262284,1740370278046,-1026.41,0.00017342,2]
[354262285,1740370278055,-500.0,0.00017342,2]
[354262286,1740370278065,-1687.26,0.00017342,2]
[354262287,1740370278076,-1040.13,0.00017342,2]
[354262288,1740370278086,-990.37,0.00017342,2]
[354262289,1740370278095,-1952.17,0.00017342,2]
[354262290,1740370278104,-3199.22,0.00017342,2]
[354262291,1740370278115,-1386.4,0.00017342,2]
[354262292,1740370278124,-1126.95,0.00017342,2]
[354262293,1740370278134,-2480.34,0.00017342,2]
[354262294,1740370278143,-2631.9,0.00017342,2]
[354262295,1740370278153,-4039.48,0.00017342,2]
[354262296,1740370278163,-572.26,0.00017342,2]
[354262297,1740370278172,-3534.61,0.00017342,2]
[354262298,1740370278182,-3523.63,0.00017342,2]
[354262299,1740370278192,-1787.16,0.00017342,2]
[354262300,1740370278201,-1888.6,0.00017342,2]
[354262301,1740370278211,-9640.15,0.00017342,2]
[354262302,1740370278222,-500.0,0.00017342,2]
[354262303,1740370278231,-2409.95,0.00017342,2]
[354262304,1740370278241,-2352.02,0.00017342,2]
[354262305,1740370278251,-500.0,0.00017342,2]
[354262306,1740370278261,-1485.16,0.00017342,2]
[354262307,1740370278270,-811.15,0.00017342,2]
[354262308,1740370278280,-500.0,0.00017342,2]
[354262309,1740370278290,-583.37,0.00017342,2]
[354262310,1740370278299,-2357.84,0.00017342,2]
[354262311,1740370278309,-4243.19,0.00017342,2]
[354262312,1740370278318,-739.0,0.00017342,2]
[354262313,1740370278328,-709.38,0.00017342,2]
[354262314,1740370278338,-1367.15,0.00017342,2]
[354262315,1740370278347,-3442.95,0.00017342,2]
[354262316,1740370278357,-2307.0,0.00017342,2]
[354262317,1740370278367,-853.06,0.00017342,2]
[354262318,1740370278377,-500.0,0.00017342,2]
[354262319,1740370278387,-506.08,0.00017363,7]
[354262320,1740370278397,-506.08,0.00017363,7]
[354262321,1740370278407,-1413.76,0.00017368,2]
[354262322,1740370278416,-204.0,0.0001738,2]
[354262323,1740370278427,-150.0,0.00017384,4]
[354262324,1740370278438,-1142.2322853,0.00017412,2]
[354262325,1740370278448,-1163.0908988,0.00017412,2]
[354262326,1740370278458,-269.31005074,0.00017417,2]
[354262327,1740370278468,-567.68,0.00017424,2]
[354262328,1740370278478,-931.01,0.00017424,2]
[354262329,1740370278488,-500.0,0.00017424,2]
[354262330,1740370278497,-538.99395,0.00017424,2]
[354262331,1740370278508,-586.522083,0.00017424,2]
[354262332,1740370278517,-654.56,0.00017424,2]
[354262333,1740370278527,-561.51,0.00017424,2]
[354262334,1740370278536,-500.0,0.00017424,2]
[354262335,1740370278546,-500.0,0.00017424,2]
[354262336,1740370278556,-632.37,0.00017424,2]
[354262337,1740370278565,-500.0,0.00017424,2]
[354262338,1740370278576,-289.37398282,0.00017424,2]
[354262339,1740370278585,-245.11576782,0.00017424,2]
[354262340,1740370279099,-254.88423218,0.00017424,2]
[354262341,1740370279109,-500.0,0.00017424,2]
[354262342,1740370279120,-500.0,0.00017424,2]
[354262343,1740370279129,-536.73,0.00017424,2]
[354262344,1740370279139,-500.0,0.00017424,2]
[354262345,1740370279148,-500.0,0.00017424,2]
[354262346,1740370279159,-500.0,0.00017424,2]
[354262347,1740370279169,-565.79,0.00017424,2]
[354262348,1740370279180,-585.43,0.00017424,2]
[354262349,1740370279190,-674.94,0.00017424,2]
[354262350,1740370279200,-500.0,0.00017424,2]
[354262351,1740370279209,-745.66,0.00017424,2]
[354262352,1740370279219,-699.72,0.00017424,2]
[354262353,1740370279228,-1904.22,0.00017424,2]
[354262354,1740370279238,-526.35,0.00017424,2]
[354262355,1740370279248,-500.0,0.00017424,2]
[354262356,1740370279258,-1002.13,0.00017424,2]
[354262357,1740370279267,-1134.15,0.00017424,2]
[354262358,1740370279277,-500.0,0.00017424,2]
[354262359,1740370279290,-571.09,0.00017424,2]
[354262360,1740370279300,-553.86,0.00017424,2]
[354262361,1740370279309,-1052.61,0.00017424,2]
[354262362,1740370279319,-850.74,0.00017424,2]
[354262363,1740370279329,-1131.97,0.00017424,2]
[354262364,1740370279339,-500.0,0.00017424,2]
[354262365,1740370279349,-899.17,0.00017424,2]
[354262366,1740370279359,-500.0,0.00017424,2]
[354262367,1740370279369,-787.33,0.00017424,2]
[354262368,1740370279378,-77.4498365,0.00017424,2]
[354262369,1740370279398,-368.47542595,0.00016438,2]
[354262370,1740370279721,-250.0,0.00015141,2]
[354262371,1740370279731,-396.95726689,0.0001627,2]
[354262372,1740370279742,-261.98000005,0.0001627,2]
[354262373,1740370279754,-439.09809422,0.0001627,2]
[354262374,1740370279764,-1254.9331,0.00016338,2]
[354262375,1740370279773,-131.52457405,0.00016438,2]
[354262376,1740370279783,-500.0,0.00016438,2]
[354262377,1740370279793,-500.0,0.0001652,2]
[354262378,1740370279803,-500.0,0.00016602,2]
[354262379,1740370279813,-386.03108493,0.00016684,2]
[354262380,1740370279824,-113.96891507,0.00016684,2]
[354262381,1740370279834,-276.41,0.00016767,2]
[354262382,1740370279843,-236.32522163,0.00017424,2]
[354262383,1740370279852,-1272.39,0.00017424,2]
[354262384,1740370279861,-500.0,0.00017424,2]
[354262385,1740370279871,-769.41,0.00017424,2]
[354262386,1740370279880,-891.59,0.00017424,2]
[354262387,1740370279889,-500.0,0.00017424,2]
[354262388,1740370279899,-746.3,0.00017424,2]
[354262389,1740370279908,-512.65,0.00017424,2]
[354262390,1740370279917,-1139.12,0.00017424,2]
[354262391,1740370279929,-629.92,0.00017424,2]
[354262392,1740370279939,-1166.53,0.00017424,2]
[354262393,1740370279948,-500.0,0.00017424,2]
[354262394,1740370279958,-500.0,0.00017424,2]
[354262395,1740370279967,-500.0,0.00017424,2]
[354262396,1740370279977,-654.42,0.00017424,2]
[354262397,1740370279986,-620.82,0.00017424,2]
[354262398,1740370279996,-500.0,0.00017424,2]
[354262399,1740370280005,-589.28,0.00017424,2]
[354262400,1740370280014,-682.77,0.00017424,2]
[354262401,1740370280023,-500.0,0.00017424,2]
[354262402,1740370280033,-500.0,0.00017424,2]
[354262403,1740370280042,-677.74,0.00017424,2]
[354262404,1740370280051,-500.0,0.00017424,2]
[354262405,1740370280060,-500.0,0.00017424,2]
[354262406,1740370280071,-515.59,0.00017424,2]
[354262407,1740370280083,-500.0,0.00017424,2]
[354262408,1740370280092,-973.07,0.00017424,2]
[354262409,1740370280102,-531.07,0.00017424,2]
[354262410,1740370280111,-614.59,0.00017424,2]
[354262411,1740370280121,-673.96,0.00017424,2]
[354262412,1740370280130,-500.0,0.00017424,2]
[354262413,1740370280139,-545.54,0.00017424,2]
[354262414,1740370280148,-546.89,0.00017424,2]
[354262415,1740370280159,-583.18,0.00017424,2]
[354262416,1740370280169,-882.41,0.00017424,2]
[354262417,1740370280179,-500.0,0.00017424,2]
[354262418,1740370280188,-500.0,0.00017424,2]
[354262419,1740370280199,-502.84,0.00017424,2]
[354262420,1740370280207,-500.0,0.00017424,2]
[354262421,1740370280216,-576.49,0.00017424,2]
[354262422,1740370280226,-500.0,0.00017424,2]
[354262423,1740370280235,-500.0,0.00017424,2]
[354262424,1740370280245,-768.2,0.00017424,2]
[354262425,1740370280254,-500.0,0.00017424,2]
[354262426,1740370280264,-556.67,0.00017424,2]
[354262427,1740370280274,-500.0,0.00017424,2]
[354262428,1740370280283,-781.2,0.00017424,2]
[354262429,1740370280293,-992.75,0.00017424,2]
[354262430,1740370280303,-845.58,0.00017424,2]
[354262431,1740370280315,-822.7,0.00017424,2]
[354262432,1740370280324,-519.67,0.00017424,2]
[354262433,1740370280334,-506.17,0.00017424,2]
[354262434,1740370280343,-1117.0,0.00017424,2]
[354262435,1740370280352,-500.0,0.00017424,2]
[354262436,1740370280362,-611.16,0.00017424,2]
[354262437,1740370280372,-500.0,0.00017424,2]
[354262438,1740370280382,-500.0,0.00017424,2]
[354262439,1740370280391,-500.0,0.00017424,2]
[354262440,1740370280401,-1226.43,0.00017424,2]
[354262441,1740370280410,-890.12,0.00017424,2]
[354262442,1740370280419,-887.69,0.00017424,2]
[354262443,1740370280430,-690.76,0.00017424,2]
[354262444,1740370280440,-689.31,0.00017424,2]
[354262445,1740370280449,-595.43,0.00017424,2]
[354262446,1740370280458,-500.0,0.00017424,2]
[354262447,1740370280468,-500.0,0.00017424,2]
[354262448,1740370280477,-929.89,0.00017424,2]
[354262449,1740370280486,-500.0,0.00017424,2]
[354262450,1740370280496,-688.58,0.00017424,2]
[354262451,1740370280506,-500.0,0.00017424,2]
[354262452,1740370280515,-518.85,0.00017424,2]
[354262453,1740370280525,-500.0,0.00017424,2]
[354262454,1740370280534,-783.77,0.00017424,2]
[354262455,1740370280543,-627.66,0.00017424,2]
[354262456,1740370280552,-500.0,0.00017424,2]
[354262457,1740370280561,-1124.15,0.00017424,2]
[354262458,1740370280571,-500.0,0.00017424,2]
[354262459,1740370280580,-500.0,0.00017424,2]
[354262460,1740370280590,-500.0,0.00017424,2]
[354262461,1740370280600,-648.07,0.00017424,2]
[354262462,1740370280609,-742.83,0.00017424,2]
[354262463,1740370280618,-544.47,0.00017424,2]
[354262464,1740370280628,-538.11,0.00017424,2]
[354262465,1740370280637,-606.9,0.00017424,2]
[354262466,1740370280646,-761.19,0.00017424,2]
[354262467,1740370280655,-942.27,0.00017424,2]
[354262468,1740370280664,-500.0,0.00017424,2]
[354262469,1740370280673,-1119.02,0.00017424,2]
[354262470,1740370280684,-719.34,0.00017424,2]
[354262471,1740370280693,-604.42,0.00017424,2]
[354262472,1740370280704,-500.0,0.00017424,2]
[354262473,1740370280713,-531.87,0.00017424,2]
[354262474,1740370280723,-985.74,0.00017424,2]
[354262475,1740370280733,-955.59,0.00017424,2]
[354262476,1740370280742,-506.69,0.00017424,2]
[354262477,1740370280751,-1299.46,0.00017424,2]
[354262478,1740370280760,-500.0,0.00017424,2]
[354262479,1740370280770,-529.88,0.00017424,2]
[354262480,1740370280779,-603.32,0.00017424,2]
[354262481,1740370280788,-500.0,0.00017424,2]
[354262482,1740370280797,-1087.58,0.00017424,2]
[354262483,1740370280807,-15.72188544,0.00017424,2]
[354262484,1740370280821,-938.10499997,0.00017424,2]
[354262485,1740370280832,-401.60311459,0.00017424,2]
[354262486,1740370280841,-545.58890381,0.00017424,2]
[354262487,1740370280853,-873.71109619,0.00017424,2]
[354262488,1740370280862,-1326.58,0.00017424,2]
[354262489,1740370280871,-681.91890381,0.00017424,2]
[354262490,1740370280883,-308.68109619,0.00017424,2]
[354262491,1740370280893,-518.6,0.00017424,2]
[354262492,1740370280902,-1147.32,0.00017424,2]
[354262493,1740370280911,-1927.97,0.00017424,2]
[354262494,1740370280920,-1418.58,0.00017424,2]
[354262495,1740370280930,-500.0,0.00017424,2]
[354262496,1740370280939,-881.04,0.00017424,2]
[354262497,1740370280949,-2363.12,0.00017424,2]
[354262498,1740370280958,-2242.46,0.00017424,2]
[354262499,1740370280967,-500.0,0.00017424,2]
[354262500,1740370280976,-500.0,0.00017424,2]
[354262501,1740370280985,-1062.87,0.00017424,2]
[354262502,1740370280995,-183.82767979,0.00017424,2]
[354262503,1740370281008,-272.87469584,0.00017424,2]
[354262504,1740370281019,-161.51762437,0.00017424,2]
[354262505,1740370281028,-89.07006205,0.00017424,2]
[354262506,1740370281040,-952.20201894,0.00017424,2]
[354262507,1740370281051,-401.34791901,0.00017424,2]
[354262508,1740370281060,-121.45208099,0.00017424,2]
[354262509,1740370281072,-640.89500003,0.00017424,2]
[354262510,1740370281087,-346.98461568,0.00017424,2]
[354262511,1740370281204,-500.0,0.0001652,2]
[354262512,1740370281272,-500.0,0.00016602,2]
[354262513,1740370281281,-500.0,0.00016684,2]
[354262514,1740370281290,-363.58,0.00016767,2]
[354262515,1740370281300,-1047.5283033,0.00017424,2]
[354262516,1740370281309,-757.82631129,0.00017424,2]
[354262517,1740370281376,-150.0,0.00016585,2]
[354262518,1740370281385,-76.59368871,0.00017424,2]
[354262519,1740370281395,-463.02651521,0.00017424,2]
[354262520,1740370281406,-696.054795,0.00017424,2]
[354262521,1740370281491,-293.1909815,0.00016526,2]
[354262522,1740370281500,-843.25868979,0.00017424,2]
[354262523,1740370281510,-693.2,0.00017424,2]
[354262524,1740370281520,-1463.93,0.00017424,2]
[354262525,1740370281529,-1507.75,0.00017424,2]
[354262526,1740370281539,-1055.17,0.00017424,2]
[354262527,1740370281548,-199.23283499,0.00017424,2]
[354262528,1740370281560,-303.58411364,0.00017424,2]
[354262529,1740370281571,-87.64305137,0.00017424,2]
[354262530,1740370281579,-731.62,0.00017424,2]
[354262531,1740370281588,-1951.74,0.00017424,2]
[354262532,1740370281598,-1780.85,0.00017424,2]
[354262533,1740370281607,-431.27933048,0.00017424,2]
[354262534,1740370281617,-68.72066952,0.00017424,2]
[354262535,1740370281627,-500.0,0.00017424,2]
[354262536,1740370281636,-582.35,0.00017424,2]
[354262537,1740370281645,-822.47,0.00017424,2]
[354262538,1740370281654,-773.02,0.00017424,2]
[354262539,1740370281663,-2054.61,0.00017424,2]
[354262540,1740370281673,-1628.62,0.00017424,2]
[354262541,1740370281683,-3117.91,0.00017424,2]
[354262542,1740370281692,-4818.73,0.00017424,2]
[354262543,1740370281701,-655.46,0.00017424,2]
[354262544,1740370281710,-4672.41892648,0.00017424,2]
[354262550,1740371304493,375.86166269,7.888e-05,2]
[354262567,1740371432320,-150.0,9.999e-05,2]